fUSD/lending_fUSD_20240519
["ID","MTS","AMOUNT","RATE_DAILY","PERIOD"]
[327449898,1716078671806,-606.7,0.00028493,2]
[327449899,1716078671816,-417.967568,0.00028493,7]
[327449900,1716078671825,-500.0,0.00028493,2]
[327449901,1716078671835,-1878.81,0.00028493,2]
[327449902,1716078671844,-2176.0,0.00028493,2]
[327449903,1716078671854,-2585.42,0.00028493,2]
[327449904,1716078671864,-417.967568,0.00028493,7]
[327449905,1716078671874,-3682.41,0.00028493,2]
[327449906,1716078671883,-500.0,0.00028493,2]
[327449907,1716078671893,-738.69,0.00028493,2]
[327449908,1716078671902,-1679.77,0.00028493,2]
[327449909,1716078671912,-702.165279,0.00028493,7]
[327449910,1716078671922,-154.715521,0.00028493,7]
[327449911,1716078671932,-702.165279,0.00028493,7]
[327449912,1716078671941,-500.0,0.00028493,2]
[327449913,1716078671951,-500.0,0.00028493,2]
[327449914,1716078671960,-2986.43,0.00028493,2]
[327449915,1716078671969,-500.0,0.00028493,2]
[327449916,1716078671978,-4242.79,0.00028493,2]
[327449917,1716078671987,-232.574185,0.00028493,7]
[327449918,1716078671996,-3057.4,0.00028493,2]
[327449919,1716078672005,-500.0,0.00028493,2]
[327449920,1716078672015,-1055.1,0.00028493,2]
[327449921,1716078672024,-500.0,0.00028493,2]
[327449922,1716078672034,-232.574185,0.00028493,7]
[327449923,1716078672043,-5880.85,0.00028493,2]
[327449924,1716078672052,-1361.72,0.00028493,2]
[327449925,1716078672061,-2275.09,0.00028493,2]
[327449926,1716078672071,-567.25,0.00028493,2]
[327449927,1716078672080,-1546.63,0.00028493,2]
[327449928,1716078672089,-2234.1,0.00028493,2]
[327449929,1716078672099,-2444.03,0.00028493,2]
[327449930,1716078672109,-629.55,0.00028493,2]
[327449931,1716078672119,-500.0,0.00028493,2]
[327449932,1716078672128,-372.86966734,0.00028493,2]
[327449933,1716078672138,-500.0,0.00028493,2]
[327449934,1716078672147,-500.0,0.00028493,2]
[327449935,1716078672157,-500.0,0.00028493,2]
[327449936,1716078672167,-631.01,0.00028493,2]
[327449937,1716078672176,-1214.83,0.00028493,2]
[327449938,1716078672185,-751.01,0.00028493,2]
[327449939,1716078672195,-151.0,0.00028493,7]
[327449940,1716078672207,-1907.53,0.00028493,2]
[327449941,1716078672216,-500.0,0.00028493,2]
[327449942,1716078672226,-2098.31,0.00028493,2]
[327449943,1716078672235,-823.01,0.00028493,2]
[327449944,1716078672245,-1155.69,0.00028493,2]
[327449945,1716078672254,-588.84,0.00028493,2]
[327449946,1716078672263,-605.80379322,0.00028493,2]
[327449947,1716078672274,-500.0,0.00028493,2]
[327449948,1716078672286,-598.87,0.00028493,2]
[327449949,1716078672295,-553.76,0.00028493,2]
[327449950,1716078672304,-513.61,0.00028493,2]
[327449951,1716078672314,-2141.74,0.00028493,2]
[327449952,1716078672323,-500.0,0.00028493,2]
[327449953,1716078672332,-916.74,0.00028493,2]
[327449954,1716078672342,-971.82,0.00028493,2]
[327449955,1716078672351,-2760.5,0.00028493,2]
[327449956,1716078672360,-1119.54,0.00028493,2]
[327449957,1716078672370,-500.0,0.00028493,2]
[327449958,1716078672380,-151.495517,0.00028493,7]
[327449959,1716078672389,-500.0,0.00028493,2]
[327449960,1716078672398,-2356.22,0.00028493,2]
[327449961,1716078672407,-6798.107725,0.00028493,7]
[327449962,1716078672416,-500.0,0.00028493,2]
[327449963,1716078672427,-5342.53652499,0.00028701,2]
[327449964,1716078672437,-2440.20609874,0.00028725,2]
[327449965,1716078672447,-1023.93556306,0.00028729,2]
[327449966,1716078672457,-202.0,0.00028737,15]
[327449967,1716078672466,-202.0,0.00028747,15]
[327449968,1716078672475,-157.051909,0.00028748,10]
[327449969,1716078672484,-202.0,0.00028757,15]
[327449970,1716078672495,-500.0,0.00028766,2]
[327449971,1716078672505,-500.0,0.00028766,2]
[327449972,1716078672516,-150.0,0.00028766,2]
[327449973,1716078672527,-681.95,0.00028767,2]
[327449974,1716078672537,-500.0,0.00028767,2]
[327449975,1716078672546,-500.0,0.00028767,2]
[327449976,1716078672555,-500.0,0.00028767,2]
[327449977,1716078672565,-500.0,0.00028767,2]
[327449978,1716078672574,-500.0,0.00028767,2]
[327449979,1716078672583,-500.0,0.00028767,2]
[327449980,1716078672592,-500.0,0.00028767,2]
[327449981,1716078672602,-500.0,0.00028767,2]
[327449982,1716078672611,-500.0,0.00028767,2]
[327449983,1716078672620,-500.0,0.00028767,2]
[327449984,1716078672629,-500.0,0.00028767,2]
[327449985,1716078672639,-500.0,0.00028767,2]
[327449986,1716078672649,-500.0,0.00028767,2]
[327449987,1716078672658,-500.0,0.00028767,2]
[327449988,1716078672668,-308.05097144,0.00028767,2]
[327449989,1716078672677,-505.93,0.00028767,2]
[327449990,1716078672686,-517.25,0.00028767,2]
[327449991,1716078672695,-500.0,0.00028767,2]
[327449992,1716078672705,-500.0,0.00028767,2]
[327449993,1716078672714,-500.0,0.00028767,2]
[327449994,1716078672724,-500.0,0.00028767,2]
[327449995,1716078672733,-500.0,0.00028767,2]
[327449996,1716078672742,-500.0,0.00028767,2]
[327449997,1716078672751,-151.0563524,0.00028767,2]
[327449998,1716078672760,-500.0,0.00028767,2]
[327449999,1716078672769,-500.0,0.00028767,2]
[327450000,1716078672779,-500.0,0.00028767,2]
[327450001,1716078672788,-500.0,0.00028767,2]
[327450002,1716078672797,-500.0,0.00028767,2]
[327450003,1716078672806,-500.0,0.00028767,2]
[327450004,1716078672816,-500.0,0.00028767,2]
[327450005,1716078672825,-500.0,0.00028767,2]
[327450006,1716078672834,-355.0070463,0.00028767,2]
[327450007,1716078672844,-500.0,0.00028767,2]
[327450008,1716078672853,-733.98,0.00028767,2]
[327450009,1716078672862,-500.0,0.00028767,2]
[327450010,1716078672872,-500.0,0.00028767,2]
[327450011,1716078672880,-500.0,0.00028767,2]
[327450012,1716078672890,-500.0,0.00028767,2]
[327450013,1716078672899,-500.0,0.00028767,2]
[327450014,1716078672909,-500.0,0.00028767,2]
[327450015,1716078672918,-722.95,0.00028767,2]
[327450016,1716078672927,-500.0,0.00028767,2]
[327450017,1716078672937,-1030.53,0.00028767,2]
[327450018,1716078672946,-502.13,0.00028767,2]
[327450019,1716078672955,-500.0,0.00028767,2]
[327450020,1716078672965,-500.0,0.00028767,2]
[327450021,1716078672974,-500.0,0.00028767,2]
[327450022,1716078672983,-500.0,0.00028767,2]
[327450023,1716078672993,-583.65,0.00028767,2]
[327450024,1716078673002,-1044.26,0.00028767,2]
[327450025,1716078673011,-648.82,0.00028767,2]
[327450026,1716078673020,-574.36,0.00028767,2]
[327450027,1716078673030,-537.0,0.00028767,2]
[327450028,1716078673039,-500.0,0.00028767,2]
[327450029,1716078673048,-500.0,0.00028767,2]
[327450030,1716078673057,-500.0,0.00028767,2]
[327450031,1716078673067,-500.0,0.00028767,2]
[327450032,1716078673076,-500.0,0.00028767,2]
[327450033,1716078673085,-500.0,0.00028767,2]
[327450034,1716078673095,-505.89,0.00028767,2]
[327450035,1716078673104,-500.0,0.00028767,2]
[327450036,1716078673113,-737.65,0.00028767,2]
[327450037,1716078673177,-500.0,0.00028767,2]
[327450038,1716078673186,-500.0,0.00028767,2]
[327450039,1716078673195,-500.0,0.00028767,2]
[327450040,1716078673204,-500.0,0.00028767,2]
[327450041,1716078673214,-500.0,0.00028767,2]
[327450042,1716078673223,-500.0,0.00028767,2]
[327450043,1716078673233,-500.0,0.00028767,2]
[327450044,1716078673242,-577.98,0.00028767,2]
[327450045,1716078673251,-500.0,0.00028767,2]
[327450046,1716078673260,-500.0,0.00028767,2]
[327450047,1716078673269,-500.0,0.00028767,2]
[327450048,1716078673282,-531.85,0.00028767,2]
[327450049,1716078673291,-500.0,0.00028767,2]
[327450050,1716078673300,-500.0,0.00028767,2]
[327450051,1716078673309,-630.47,0.00028767,2]
[327450052,1716078673319,-921.62,0.00028767,2]
[327450053,1716078673329,-598.64,0.00028767,2]
[327450054,1716078673338,-597.35,0.00028767,2]
[327450055,1716078673347,-500.0,0.00028767,2]
[327450056,1716078673360,-678.99,0.00028767,2]
[327450057,1716078673370,-500.0,0.00028767,2]
[327450058,1716078673379,-500.0,0.00028767,2]
[327450059,1716078673388,-1138.39,0.00028767,2]
[327450060,1716078673397,-596.25,0.00028767,2]
[327450061,1716078673406,-500.0,0.00028767,2]
[327450062,1716078673415,-500.0,0.00028767,2]
[327450063,1716078673424,-500.0,0.00028767,2]
[327450064,1716078673433,-827.83,0.00028767,2]
[327450065,1716078673442,-500.0,0.00028767,2]
[327450066,1716078673451,-1011.91,0.00028767,2]
[327450067,1716078673461,-890.31,0.00028767,2]
[327450068,1716078673470,-500.0,0.00028767,2]
[327450069,1716078673479,-500.0,0.00028767,2]
[327450070,1716078673488,-655.15,0.00028767,2]
[327450071,1716078673497,-500.0,0.00028767,2]
[327450072,1716078673506,-500.0,0.00028767,2]
[327450073,1716078673514,-672.45,0.00028767,2]
[327450074,1716078673523,-500.0,0.00028767,2]
[327450075,1716078673533,-500.0,0.00028767,2]
[327450076,1716078673542,-500.0,0.00028767,2]
[327450077,1716078673551,-500.0,0.00028767,2]
[327450078,1716078673560,-187.53985944,0.00028767,2]
[327450079,1716078673569,-504.05,0.00028767,2]
[327450080,1716078673578,-689.56,0.00028767,2]
[327450081,1716078673587,-500.0,0.00028767,2]
[327450082,1716078673596,-611.06,0.00028767,2]
[327450083,1716078673605,-500.0,0.00028767,2]
[327450084,1716078673615,-500.0,0.00028767,2]
[327450085,1716078673624,-633.75,0.00028767,2]
[327450086,1716078673634,-500.0,0.00028767,2]
[327450087,1716078673643,-900.3,0.00028767,2]
[327450088,1716078673652,-500.0,0.00028767,2]
[327450089,1716078673660,-500.0,0.00028767,2]
[327450090,1716078673669,-523.89,0.00028767,2]
[327450091,1716078673678,-534.55,0.00028767,2]
[327450092,1716078673687,-569.19,0.00028767,2]
[327450093,1716078673696,-500.0,0.00028767,2]
[327450094,1716078673705,-500.0,0.00028767,2]
[327450095,1716078673714,-500.0,0.00028767,2]
[327450096,1716078673723,-590.95,0.00028767,2]
[327450097,1716078673732,-500.0,0.00028767,2]
[327450098,1716078673742,-1239.6,0.00028767,2]
[327450099,1716078673751,-500.0,0.00028767,2]
[327450100,1716078673760,-637.24,0.00028767,2]
[327450101,1716078673769,-748.98,0.00028767,2]
[327450102,1716078673779,-151.0,0.00028767,7]
[327450103,1716078673788,-500.0,0.00028767,2]
[327450104,1716078673797,-500.0,0.00028767,2]
[327450105,1716078673806,-527.94,0.00028767,2]
[327450106,1716078673815,-832.73,0.00028767,2]
[327450107,1716078673823,-500.0,0.00028767,2]
[327450108,1716078673832,-551.34,0.00028767,2]
[327450109,1716078673842,-484.67204014,0.00028767,2]
[327450110,1716078673851,-500.0,0.00028767,2]
[327450111,1716078673860,-500.0,0.00028767,2]
[327450112,1716078673869,-500.0,0.00028767,2]
[327450113,1716078673878,-500.0,0.00028767,2]
[327450114,1716078673887,-500.0,0.00028767,2]
[327450115,1716078673896,-500.0,0.00028767,2]
[327450116,1716078673906,-876.87,0.00028767,2]
[327450117,1716078673915,-500.0,0.00028767,2]
[327450118,1716078673924,-812.13,0.00028767,2]
[327450119,1716078673933,-500.0,0.00028767,2]
[327450120,1716078673942,-648.2,0.00028767,2]
[327450121,1716078673951,-500.0,0.00028767,2]
[327450122,1716078673961,-1583.82,0.00028767,2]
[327450123,1716078673970,-500.0,0.00028767,2]
[327450124,1716078673979,-166.82917,0.00028767,7]
[327450125,1716078673988,-1475.35,0.00028767,2]
[327450126,1716078673998,-895.82,0.00028767,2]
[327450127,1716078674007,-500.0,0.00028767,2]
[327450128,1716078674016,-670.03,0.00028767,2]
[327450129,1716078674027,-882.87,0.00028767,2]
[327450130,1716078674036,-500.0,0.00028767,2]
[327450131,1716078674045,-500.0,0.00028767,2]
[327450132,1716078674060,-500.0,0.00028767,2]
[327450133,1716078674069,-580.61,0.00028767,2]
[327450134,1716078674078,-545.97,0.00028767,2]
[327450135,1716078674087,-500.0,0.00028767,2]
[327450136,1716078674097,-151.0,0.00028767,7]
[327450137,1716078674106,-500.0,0.00028767,2]
[327450138,1716078674115,-500.0,0.00028767,2]
[327450139,1716078674124,-151.0,0.00028767,7]
[327450140,1716078674133,-500.0,0.00028767,2]
[327450141,1716078674142,-529.56,0.00028767,2]
[327450142,1716078674152,-360.59859858,0.00028767,2]
[327450143,1716078674161,-500.0,0.00028767,2]
[327450144,1716078674171,-2239.3,0.00028767,2]
[327450145,1716078674180,-151.0,0.00028767,7]
[327450146,1716078674189,-500.0,0.00028767,2]
[327450147,1716078674198,-151.0,0.00028767,7]
[327450148,1716078674206,-619.46,0.00028767,2]
[327450149,1716078674215,-823.42,0.00028767,2]
[327450150,1716078674224,-500.0,0.00028767,2]
[327450151,1716078674233,-500.0,0.00028767,2]
[327450152,1716078674242,-500.0,0.00028767,2]
[327450153,1716078674251,-899.65,0.00028767,2]
[327450154,1716078674260,-151.0,0.00028767,7]
[327450155,1716078674269,-541.86,0.00028767,2]
[327450156,1716078674282,-716.2,0.00028767,2]
[327450157,1716078674290,-229.667264,0.00028767,7]
[327450158,1716078674299,-621.68,0.00028767,2]
[327450159,1716078674308,-151.0,0.00028767,7]
[327450160,1716078674317,-229.667264,0.00028767,7]
[327450161,1716078674326,-669.33,0.00028767,2]
[327450162,1716078674335,-1398.84,0.00028767,2]
[327450163,1716078674345,-151.0,0.00028767,7]
[327450164,1716078674354,-500.0,0.00028767,2]
[327450165,1716078674364,-557.15,0.00028767,2]
[327450166,1716078674374,-151.0,0.00028767,7]
[327450167,1716078674382,-735.95,0.00028767,2]
[327450168,1716078674391,-500.0,0.00028767,2]
[327450169,1716078674400,-669.0,0.00028767,2]
[327450170,1716078674409,-753.99,0.00028767,2]
[327450171,1716078674419,-151.0,0.00028767,7]
[327450172,1716078674427,-1923.63,0.00028767,2]
[327450173,1716078674436,-884.1,0.00028767,2]
[327450174,1716078674446,-500.0,0.00028767,2]
[327450175,1716078674456,-500.0,0.00028767,2]
[327450176,1716078674465,-656.37,0.00028767,2]
[327450177,1716078674474,-358.384419,0.00028767,7]
[327450178,1716078674483,-500.0,0.00028767,2]
[327450179,1716078674492,-358.384419,0.00028767,7]
[327450180,1716078674501,-928.15,0.00028767,2]
[327450181,1716078674510,-500.0,0.00028767,2]
[327450182,1716078674519,-806.75,0.00028767,2]
[327450183,1716078674528,-500.0,0.00028767,2]
[327450184,1716078674538,-685.35,0.00028767,2]
[327450185,1716078674547,-648.92,0.00028767,2]
[327450186,1716078674556,-500.0,0.00028767,2]
[327450187,1716078674566,-151.0,0.00028767,7]
[327450188,1716078674575,-500.0,0.00028767,2]
[327450189,1716078674585,-500.0,0.00028767,2]
[327450190,1716078674594,-151.0,0.00028767,7]
[327450191,1716078674603,-813.03,0.00028767,2]
[327450192,1716078674612,-614.14,0.00028767,2]
[327450193,1716078674622,-791.44,0.00028767,2]
[327450194,1716078674630,-151.0,0.00028767,7]
[327450195,1716078674640,-500.0,0.00028767,2]
[327450196,1716078674649,-151.0,0.00028767,7]
[327450197,1716078674658,-500.0,0.00028767,2]
[327450198,1716078674667,-1036.27,0.00028767,2]
[327450199,1716078674676,-693.8,0.00028767,2]
[327450200,1716078674685,-500.0,0.00028767,2]
[327450201,1716078674694,-1117.96,0.00028767,2]
[327450202,1716078674703,-774.17,0.00028767,2]
[327450203,1716078674713,-500.0,0.00028767,2]
[327450204,1716078674722,-500.0,0.00028767,2]
[327450205,1716078674731,-151.0,0.00028767,7]
[327450206,1716078674743,-408.80991285,0.00028767,2]
[327450207,1716078674751,-151.0,0.00028767,7]
[327450208,1716078674761,-367.75761198,0.00028767,2]
[327450209,1716078674770,-500.0,0.00028767,2]
[327450210,1716078674780,-554.73,0.00028767,2]
[327450211,1716078674790,-762.69,0.00028767,2]
[327450212,1716078674799,-500.0,0.00028767,2]
[327450213,1716078674810,-500.0,0.00028767,2]
[327450214,1716078674820,-151.0,0.00028767,7]
[327450215,1716078674830,-151.0,0.00028767,7]
[327450216,1716078674839,-259.411566,0.00028767,7]
[327450217,1716078674850,-500.0,0.00028767,2]
[327450218,1716078674859,-151.0,0.00028767,7]
[327450219,1716078674869,-150.0,0.00028767,2]
[327450220,1716078674879,-500.0,0.00028767,2]
[327450221,1716078674889,-259.411566,0.00028767,7]
[327450222,1716078674899,-1681.9,0.00028767,2]
[327450223,1716078674910,-1315.61,0.00028767,2]
[327450224,1716078674921,-151.0,0.00028767,7]
[327450225,1716078674930,-518.65,0.00028767,2]
[327450226,1716078674940,-1008.21,0.00028767,2]
[327450227,1716078674950,-578.45,0.00028767,2]
[327450228,1716078674961,-500.0,0.00028767,2]
[327450229,1716078674971,-500.0,0.00028767,2]
[327450230,1716078674982,-665.8,0.00028767,2]
[327450231,1716078674992,-500.0,0.00028767,2]
[327450232,1716078675002,-512.39,0.00028767,2]
[327450233,1716078675012,-1367.82,0.00028767,2]
[327450234,1716078675022,-500.0,0.00028767,2]
[327450235,1716078675031,-151.0,0.00028767,7]
[327450236,1716078675042,-966.33,0.00028767,2]
[327450237,1716078675058,-911.7,0.00028767,2]
[327450238,1716078675067,-957.33,0.00028767,2]
[327450239,1716078675076,-1131.82,0.00028767,2]
[327450240,1716078675086,-500.0,0.00028767,2]
[327450241,1716078675095,-151.0,0.00028767,7]
[327450242,1716078675104,-1166.35,0.00028767,2]
[327450243,1716078675113,-500.0,0.00028767,2]
[327450244,1716078675122,-500.0,0.00028767,2]
[327450245,1716078675131,-500.0,0.00028767,2]
[327450246,1716078675141,-862.14,0.00028767,2]
[327450247,1716078675150,-471.67101494,0.00028767,2]
[327450248,1716078675159,-960.69,0.00028767,2]
[327450249,1716078675168,-522.68,0.00028767,2]
[327450250,1716078675177,-654.36,0.00028767,2]
[327450251,1716078675186,-500.0,0.00028767,2]
[327450252,1716078675195,-500.0,0.00028767,2]
[327450253,1716078675204,-500.0,0.00028767,2]
[327450254,1716078675215,-500.0,0.00028767,2]
[327450255,1716078675224,-1298.17,0.00028767,2]
[327450256,1716078675233,-852.23,0.00028767,2]
[327450257,1716078675243,-500.0,0.00028767,2]
[327450258,1716078675253,-283.22503,0.00028767,7]
[327450259,1716078675263,-500.0,0.00028767,2]
[327450260,1716078675272,-641.81,0.00028767,2]
[327450261,1716078675287,-1049.32,0.00028767,2]
[327450262,1716078675296,-283.22503,0.00028767,7]
[327450263,1716078675305,-500.0,0.00028767,2]
[327450264,1716078675314,-559.84,0.00028767,2]
[327450265,1716078675324,-920.0,0.00028767,2]
[327450266,1716078675333,-500.0,0.00028767,2]
[327450267,1716078675343,-500.0,0.00028767,2]
[327450268,1716078675353,-500.0,0.00028767,2]
[327450269,1716078675365,-500.0,0.00028767,2]
[327450270,1716078675374,-500.0,0.00028767,2]
[327450271,1716078675383,-1059.88,0.00028767,2]
[327450272,1716078675392,-1239.43,0.00028767,2]
[327450273,1716078675401,-500.0,0.00028767,2]
[327450274,1716078675410,-151.0,0.00028767,7]
[327450275,1716078675419,-930.82,0.00028767,2]
[327450276,1716078675427,-896.18,0.00028767,2]
[327450277,1716078675436,-1090.58,0.00028767,2]
[327450278,1716078675445,-500.0,0.00028767,2]
[327450279,1716078675454,-501.2,0.00028767,2]
[327450280,1716078675464,-756.03,0.00028767,2]
[327450281,1716078675473,-3708.29,0.00028767,2]
[327450282,1716078675483,-568.47,0.00028767,2]
[327450283,1716078675492,-634.45,0.00028767,2]
[327450284,1716078675503,-669.45,0.00028767,2]
[327450285,1716078675513,-640.29,0.00028767,2]
[327450286,1716078675524,-1188.88,0.00028767,2]
[327450287,1716078675534,-1706.37,0.00028767,2]
[327450288,1716078675545,-501.03,0.00028767,2]
[327450289,1716078675554,-500.0,0.00028767,2]
[327450290,1716078675564,-604.36,0.00028767,2]
[327450291,1716078675574,-18503.15,0.00028767,2]
[327450292,1716078675584,-500.0,0.00028767,2]
[327450293,1716078675593,-3042.71,0.00028767,2]
[327450294,1716078675604,-918.3,0.00028767,2]
[327450295,1716078675615,-500.0,0.00028767,2]
[327450296,1716078675625,-673.49,0.00028767,2]
[327450297,1716078675636,-1478.1,0.00028767,2]
[327450298,1716078675647,-563.24,0.00028767,2]
[327450299,1716078675657,-1236.25,0.00028767,2]
[327450300,1716078675668,-6353.16,0.00028767,2]
[327450301,1716078675679,-500.0,0.00028767,2]
[327450302,1716078675688,-858.51,0.00028767,2]
[327450303,1716078675698,-500.0,0.00028767,2]
[327450304,1716078675707,-1637.74,0.00028767,2]
[327450305,1716078675716,-2093.82,0.00028767,2]
[327450306,1716078675727,-1213.21,0.00028767,2]
[327450307,1716078675737,-1033.3,0.00028767,2]
[327450308,1716078675747,-837.96,0.00028767,2]
[327450309,1716078675758,-649.63,0.00028767,2]
[327450310,1716078675768,-6393.72,0.00028767,2]
[327450311,1716078675777,-1059.23,0.00028767,2]
[327450312,1716078675787,-1055.23,0.00028767,2]
[327450313,1716078675796,-1196.2,0.00028767,2]
[327450314,1716078675805,-13606.2,0.00028767,2]
[327450315,1716078675815,-9049.33,0.00028767,2]
[327450316,1716078675824,-892.42,0.00028767,2]
[327450317,1716078675833,-500.0,0.00028767,2]
[327450318,1716078675843,-1312.43,0.00028767,2]
[327450319,1716078675852,-686.8,0.00028767,2]
[327450320,1716078675862,-929.49,0.00028767,2]
[327450321,1716078675871,-500.0,0.00028767,2]
[327450322,1716078675881,-1939.3,0.00028767,2]
[327450323,1716078675891,-743.66,0.00028767,2]
[327450324,1716078675902,-500.0,0.00028767,2]
[327450325,1716078675913,-2013.02,0.00028767,2]
[327450326,1716078675923,-1030.41,0.00028767,2]
[327450327,1716078675934,-500.0,0.00028767,2]
[327450328,1716078675943,-1781.24,0.00028767,2]
[327450329,1716078675953,-500.0,0.00028767,2]
[327450330,1716078675963,-784.58,0.00028767,2]
[327450331,1716078675973,-1095.5,0.00028767,2]
[327450332,1716078675982,-500.0,0.00028767,2]
[327450333,1716078675992,-675.78,0.00028767,2]
[327450334,1716078676002,-5578.21,0.00028767,2]
[327450335,1716078676012,-853.49,0.00028767,2]
[327450336,1716078676022,-1353.59,0.00028767,2]
[327450337,1716078676032,-4213.64,0.00028767,2]
[327450338,1716078676042,-613.16,0.00028767,2]
[327450339,1716078676051,-1183.02,0.00028767,2]
[327450340,1716078676061,-8319.89,0.00028767,2]
[327450341,1716078676070,-1523.68,0.00028767,2]
[327450342,1716078676080,-11263.28,0.00028767,2]
[327450343,1716078676089,-500.0,0.00028767,2]
[327450344,1716078676101,-687.5,0.00028767,2]
[327450345,1716078676112,-988.22,0.00028767,2]
[327450346,1716078676122,-500.0,0.00028767,2]
[327450347,1716078676131,-2530.3,0.00028767,2]
[327450348,1716078676141,-878.41,0.00028767,2]
[327450349,1716078676151,-11394.4,0.00028767,2]
[327450350,1716078676161,-1672.62,0.00028767,2]
[327450351,1716078676170,-500.0,0.00028767,2]
[327450352,1716078676179,-803.29,0.00028767,2]
[327450353,1716078676190,-1311.7,0.00028767,2]
[327450354,1716078676200,-7614.15,0.00028767,2]
[327450355,1716078676214,-1307.43,0.00028767,2]
[327450356,1716078676223,-500.0,0.00028767,2]
[327450357,1716078676234,-1045.39,0.00028767,2]
[327450358,1716078676245,-3075.12,0.00028767,2]
[327450359,1716078676255,-652.54,0.00028767,2]
[327450360,1716078676265,-863.6,0.00028767,2]
[327450361,1716078676275,-500.0,0.00028767,2]
[327450362,1716078676287,-500.0,0.00028767,2]
[327450363,1716078676297,-500.0,0.00028767,2]
[327450364,1716078676306,-1831.66,0.00028767,2]
[327450365,1716078676316,-1329.27,0.00028767,2]
[327450366,1716078676325,-675.65,0.00028767,2]
[327450367,1716078676335,-12287.87,0.00028767,2]
[327450368,1716078676344,-1113.15,0.00028767,2]
[327450369,1716078676353,-500.0,0.00028767,2]
[327450370,1716078676362,-2444.57,0.00028767,2]
[327450371,1716078676372,-2423.7,0.00028767,2]
[327450372,1716078676381,-690.97,0.00028767,2]
[327450373,1716078676390,-782.51,0.00028767,2]
[327450374,1716078676399,-500.0,0.00028767,2]
[327450375,1716078676409,-2076.59,0.00028767,2]
[327450376,1716078676419,-14693.09,0.00028767,2]
[327450377,1716078676428,-500.0,0.00028767,2]
[327450378,1716078676437,-2483.23,0.00028767,2]
[327450379,1716078676447,-634.11,0.00028767,2]
[327450380,1716078676457,-1053.73,0.00028767,2]
[327450381,1716078676467,-1080.2,0.00028767,2]
[327450382,1716078676477,-500.0,0.00028767,2]
[327450383,1716078676487,-4673.28,0.00028767,2]
[327450384,1716078676497,-500.0,0.00028767,2]
[327450385,1716078676507,-500.0,0.00028767,2]
[327450386,1716078676520,-1437.6,0.00028767,2]
[327450387,1716078676529,-500.0,0.00028767,2]
[327450388,1716078676541,-1159.59,0.00028767,2]
[327450389,1716078676552,-500.0,0.00028767,2]
[327450390,1716078676564,-627.84,0.00028767,2]
[327450391,1716078676575,-880.42,0.00028767,2]
[327450392,1716078676586,-1488.28,0.00028767,2]
[327450393,1716078676598,-1630.92,0.00028767,2]
[327450394,1716078676609,-9733.43,0.00028767,2]
[327450395,1716078676620,-500.0,0.00028767,2]
[327450396,1716078676630,-880.17,0.00028767,2]
[327450397,1716078676640,-2962.83,0.00028767,2]